[Event "44th Chess Olympiad Open 2022"]
[Site "Chennai"]
[Date "2022.08.02"]
[Round "5.4"]
[White "Boruchovsky, Avital"]
[Black "Caruana, Fabiano"]
[Result "1/2-1/2"]
[WhiteElo "2551"]
[BlackElo "2783"]
[Annotator "TA"]
[PlyCount "63"]
[EventDate "2022.??.??"]
[TimeControl "60"]

{[%evp 9,63,18,14,9,24,-9,-7,0,0,-52,-54,-79,-51,-57,-45,-96,-52,-70,-38,-33,
-35,-38,-40,-45,-40,-43,-48,-101,-26,-31,9,10,9,15,6,12,16,0,0,0,4,0,0,0,0,0,0,
0,0,0,0,0,0,0,0,0]} 1. c4 {[%emt 0:00:08]} e5 {[%emt 0:00:08]} 2. Nc3 {[%emt 0:
00:00]} d6 {[%emt 0:00:34]} 3. Nf3 {[%emt 0:04:03]} f5 {[%emt 0:00:48]} 4. g3 {
[%emt 0:00:22]} Be7 {[%emt 0:01:33] [#]} 5. Bh3 $146 {[%emt 0:02:17]} ({
Predecessor:} 5. h4 Nf6 6. d4 e4 7. Ng5 c6 8. d5 Na6 9. Bg2 O-O 10. O-O Nc7 11.
Nh3 Ng4 12. Bf4 c5 13. f3 exf3 14. exf3 Ne5 15. b3 Bf6 16. Qc2 Bd7 {0-1 (51)
Caruana,F (2781)-Grischuk,A (2742) Chess.com INT 2022}) 5... c5 {[%emt 0:19:31]
} 6. d3 {[%emt 0:11:43] A21: English Opening: 1...e5 2 Nc3.} Nc6 {[%emt 0:00:
00]} 7. Nd5 {[%emt 0:00:50]} Nf6 {[%emt 0:06:10]} 8. Nxe7 {[%emt 0:04:05]} Qxe7
{[%emt 0:00:00]} 9. Nh4 {[%emt 0:04:44]} (9. O-O $11) 9... f4 $1 $15 {[%emt 0:
00:00]} 10. Bxc8 {[%emt 0:02:03]} Rxc8 {[%emt 0:00:12]} 11. gxf4 {[%emt 0:00:
00]} O-O {[%emt 0:04:12] aiming for ...exf4.} 12. Ng2 {[%emt 0:09:15]} (12. Nf5
$1 $15 Qe6 13. Ng3) 12... d5 {[%emt 0:19:53]} 13. cxd5 {[%emt 0:07:47]} Nxd5 {
[%emt 0:04:34][%cal Re5f4]} 14. fxe5 {[%emt 0:09:01]} Nd4 {[%emt 0:00:00] Pair
of Knights!} 15. Be3 {[%emt 0:13:04]} Qxe5 {[%emt 0:00:00] [#] Threatens to
win with ...Rc6.} 16. Bxd4 {[%emt 0:00:00]} cxd4 {[%emt 0:00:00]} 17. O-O {
[%emt 0:03:04]} Rc6 {[%emt 0:03:59]} 18. Qb3 {[%emt 0:06:20]} ({White should
try} 18. f4 $15 Qe6 19. Rc1) 18... Kh8 {[%emt 0:08:05]} (18... Rh6 $17 {
[%csl Gh6][%cal Re5h2]} 19. f4 (19. h4 $2 Rg6 $19) 19... Qh5) 19. f4 $1 $11 {
[%emt 0:00:00]} Nxf4 {[%emt 0:03:45]} (19... Qh5 $5 {[%cal Rc6h6]} 20. Rf3 Rh6
$15) 20. Rxf4 {[%emt 0:00:00] The position is equal.} Rxf4 {[%emt 0:00:03]} 21.
Qxb7 {[%emt 0:01:25] [#] Qa8+ would kill now.} Rcf6 {[%emt 0:04:33][%cal Yc6f6,
Yf6f7,Yf7f8]} 22. Nxf4 {[%emt 0:00:00] Dancing on a razor blade.} Qxf4 {
[%emt 0:00:04] Endgame KQR-KQR} 23. Kh1 {[%emt 0:00:00]} Rf7 {[%emt 0:03:11]}
24. Qa8+ {[%emt 0:08:44]} Rf8 {[%emt 0:00:04]} 25. Qxa7 {[%emt 0:00:04] Hoping
for b4.} Qe5 {[%emt 0:00:33]} 26. Qb7 {[%emt 0:00:28]} Qxe2 {[%emt 0:00:11] (
-> ...Rf1+)} 27. Rg1 {[%emt 0:00:06][%csl Gg1][%cal Rb7g7]} g6 {[%emt 0:01:41]}
28. Qe4 {[%emt 0:04:01]} Qxb2 {[%emt 0:00:56]} 29. Qe5+ {[%emt 0:00:05]} Kg8 {
[%emt 0:00:03]} 30. Qd5+ {[%emt 0:00:05]} Kg7 {[%emt 0:00:27]} 31. Qe5+ {
[%emt 0:00:27]} Kg8 {[%emt 0:00:06]} 32. Qd5+ {[%emt 0:00:05] Weighted Error
Value: White=0.12 (very precise) /Black=0.09 (flawless)} 1/2-1/2

[Event "44th Chess Olympiad Open 2022"]
[Site "Chennai"]
[Date "2022.08.02"]
[Round "5.5"]
[White "Wojtaszek, Radoslaw"]
[Black "Fressinet, Laurent"]
[Result "1-0"]
[WhiteElo "2708"]
[BlackElo "2631"]
[Annotator "TA"]
[PlyCount "139"]
[EventDate "2022.??.??"]
[TimeControl "60"]

{[%evp 13,139,28,29,28,49,34,66,70,60,60,56,39,77,52,48,9,9,2,22,0,12,0,12,4,
13,0,7,33,43,40,52,52,52,52,56,45,131,132,139,125,141,100,95,97,150,106,98,98,
99,107,104,81,72,74,73,78,131,122,128,129,249,249,207,207,200,193,201,198,230,
220,230,221,245,221,230,224,218,213,247,185,250,275,272,258,335,335,335,342,
342,342,422,207,839,839,2939,3760,3654,3231,4134,3464,6279,3003,5869,4765,
29970,29971,29981,29982,29982,29983,29983,29979,29979,29980,29980,29981,29981,
29982,29982,29983,29983,29981,29984,29985,29985,29986,29986,29987]} 1. d4 {
[%emt 0:00:02]} Nf6 {[%emt 0:00:07]} 2. c4 {[%emt 0:00:05]} e6 {[%emt 0:00:03]}
3. Nc3 {[%emt 0:00:06]} Bb4 {[%emt 0:00:05]} 4. Qc2 {[%emt 0:00:05]} d5 {
[%emt 0:01:03]} 5. a3 {[%emt 0:00:16]} Bxc3+ {[%emt 0:00:50]} 6. Qxc3 {[%emt 0:
00:00]} Ne4 {[%emt 0:01:57] 6...Ne4 was played by the boomers.} 7. Qc2 {
[%emt 0:00:17]} c5 {[%emt 0:01:37]} 8. dxc5 {[%emt 0:00:12] E37: Nimzo-Indian:
Classical: 4...d5 5 a3 Bxc3+ 6 Qxc3 Ne4.} Nc6 {[%emt 0:01:25]} ({Less strong is
} 8... Nxc5 9. cxd5 Nca6 10. b4 $16) 9. Nf3 {[%emt 0:01:11] Against Nd4} (9. e3
$5 {[%cal Rb2b4]}) 9... O-O {[%emt 0:02:52]} 10. b4 {[%emt 0:14:25][%cal Yb2b4,
Yb4b5] Prevents Qa5. White is slightly better.} a5 {[%emt 0:02:06]} 11. b5 {
[%emt 0:00:20] aiming for cxd5.} Ne7 {[%emt 0:00:35]} 12. Bb2 {[%emt 0:00:00]}
Nxc5 {[%emt 0:13:26]} 13. cxd5 {[%emt 0:00:13]} b6 {[%emt 0:10:41]} 14. Rd1 {
[%emt 0:19:54]} (14. dxe6 {seems wilder.} Bxe6 15. Rd1 Bb3 16. Rxd8 Bxc2 17.
Rxa8 Rxa8 18. Nd4) 14... exd5 {[%emt 0:02:06]} (14... Nxd5 $2 15. e4 $18) 15.
Nd4 {[%emt 0:03:15] Prevents Bf5.} ({Don't blunder} 15. Bxg7 $2 Kxg7 16. Nd4
Qd6 $19) 15... Bg4 {[%emt 0:05:37]} 16. g3 {[%emt 0:00:53] [#]} Qd7 $146 {
[%emt 0:11:30]} ({Predecessor:} 16... Rc8 17. Bg2 Bh5 18. Nc6 Nxc6 19. Rxd5 Bg6
20. Qc3 Qf6 21. Qxf6 gxf6 22. bxc6 Rxc6 {0-1 (41) Gonzalez Vidal,Y (2530)
-Garcia Pantoja,R (2407) Ciego de Avila 2009}) 17. h3 $40 {[%emt 0:01:12]
Black needs to defend precisely.} Bh5 {[%emt 0:00:49]} 18. Bg2 {[%emt 0:00:00]
[%cal Yd4c6]} Rac8 {[%emt 0:08:35] Prevents Nc6.} 19. O-O {[%emt 0:11:37][%cal
Yd4c6]} Bg6 {[%emt 0:02:23]} 20. Qd2 {[%emt 0:00:51]} Ne4 {[%emt 0:04:01]} 21.
Qf4 {[%emt 0:06:56]} Rc4 {[%emt 0:04:27]} 22. Rc1 {[%emt 0:00:50]} Nd6 {
[%emt 0:01:24]} 23. Rxc4 {[%emt 0:15:53]} Nxc4 {[%emt 0:00:10]} 24. Bc1 {
[%emt 0:00:31] A strong pair of Bishops.} Be4 {[%emt 0:13:00]} (24... f6 $14)
25. Bxe4 $16 {[%emt 0:01:36]} dxe4 {[%emt 0:00:04]} 26. Qxe4 {[%emt 0:00:57]}
Nd6 {[%emt 0:01:11]} 27. Qg4 {[%emt 0:02:35] White is more active.} Qxg4 {
[%emt 0:03:09]} 28. hxg4 {[%emt 0:00:05]} Nd5 {[%emt 0:00:08]} ({Better is} 
28... Rc8) 29. Bf4 {[%emt 0:00:55]} Nxf4 {[%emt 0:03:31]} 30. gxf4 {[%emt 0:00:
00] Endgame KRN-KRN} Rc8 {[%emt 0:00:33]} 31. Rd1 {[%emt 0:02:45]} Kf8 {
[%emt 0:02:46]} 32. a4 {[%emt 0:04:55]} Ne4 {[%emt 0:00:26]} 33. Kf1 {[%emt 0:
05:42]} Nc3 {[%emt 0:03:39]} 34. Rc1 {[%emt 0:00:08]} g6 {[%emt 0:00:00]} ({
Black should play} 34... Rc4) 35. e3 {[%emt 0:00:38]} Rc5 {[%emt 0:00:00]} 36.
Nb3 {[%emt 0:00:20]} Rc8 {[%emt 0:00:48] [#]} (36... Rc4 $16 {was called for.}
37. Nxa5 Rxa4) 37. Nxa5 $1 $18 {[%emt 0:01:24]} Ke8 {[%emt 0:00:11]} (37...
bxa5 38. b6) 38. Nb3 {[%emt 0:00:59] a5 is the strong threat.} Kd7 {[%emt 0:00:
03]} 39. Nd4 {[%emt 0:02:09] Strongly threatening Nc6.} Nxa4 {[%emt 0:00:12]}
40. Nc6 {[%emt 0:00:05]} Ke8 {[%emt 0:01:09]} 41. Kg2 {[%emt 0:02:18]} Kf8 {
[%emt 0:04:57]} 42. Kf3 {[%emt 0:01:49]} Nc5 {[%emt 0:00:00]} 43. Ra1 {[%emt 0:
01:26]} Rc7 {[%emt 0:02:07]} 44. Ra8+ {[%emt 0:02:11]} Kg7 {[%emt 0:00:01]} 45.
Rd8 {[%emt 0:01:00]} h6 {[%emt 0:05:52]} 46. f5 {[%emt 0:05:13]} Nb7 {[%emt 0:
09:18]} (46... gxf5 $142 47. gxf5 Rd7) 47. Rd5 {[%emt 0:01:23]} gxf5 {[%emt 0:
00:53]} 48. gxf5 {[%emt 0:00:33][%cal Yg4f5,Yf5f6]} Nc5 {[%emt 0:00:07]} 49. e4
{[%emt 0:03:14]} Rd7 {[%emt 0:00:00]} 50. Rxd7 {[%emt 0:00:54]} Nxd7 {[%emt 0:
00:03] KN-KN} 51. e5 {[%emt 0:00:00] Hoping for Kg4.} Nc5 {[%emt 0:00:25]} 52.
Kg4 {[%emt 0:01:41]} (52. f6+ $142 Kf8 53. Kg4) 52... Ne4 $2 {[%emt 0:03:51]} (
52... f6 53. e6 Ne4) 53. f6+ {[%emt 0:03:54]} Kf8 {[%emt 0:02:33]} 54. f4 {
[%emt 0:00:55][%cal Yf2f4,Yf4f5]} Nc3 {[%emt 0:00:17]} 55. Nd4 {[%emt 0:00:25]}
Nd5 {[%emt 0:00:10]} 56. Ne2 {[%emt 0:03:05]} Nc7 {[%emt 0:01:18]} 57. Nc3 {
[%emt 0:01:40] Black must now prevent Kh4.} Ne6 {[%emt 0:00:02]} 58. Nd5 {
[%emt 0:00:28]} Kg8 {[%emt 0:02:25]} 59. f5 {[%emt 0:00:51] White mates.} Nd4 {
[%emt 0:00:18]} 60. Nc7 {[%emt 0:00:18]} h5+ {[%emt 0:00:32]} 61. Kf4 {[%emt 0:
01:30]} Ne2+ {[%emt 0:01:21]} 62. Kg5 {[%emt 0:00:52]} Ng3 {[%emt 0:00:06]} 63.
Nd5 {[%emt 0:00:00]} Kf8 {[%emt 0:00:56]} 64. e6 {[%emt 0:01:21]} Ne4+ {
[%emt 0:00:09]} 65. Kxh5 {[%emt 0:02:32]} Nd6 {[%emt 0:00:05]} 66. e7+ {
[%emt 0:00:27]} Ke8 {[%emt 0:00:04]} 67. Nc7+ {[%emt 0:00:09]} Kd7 {[%emt 0:00:
03]} 68. e8=Q+ {[%emt 0:00:05]} Nxe8 {[%emt 0:00:07]} 69. Nxe8 {[%emt 0:00:02]}
Kxe8 {[%emt 0:00:00]} 70. Kh6 {[%emt 0:00:05] Weighted Error Value: White=0.10
(very precise) /Black=0.32} 1-0

[Event "44th Chess Olympiad Open 2022"]
[Site "Chennai"]
[Date "2022.08.02"]
[Round "5.5"]
[White "Moussard, Jules"]
[Black "Duda, Jan-Krzysztof"]
[Result "1/2-1/2"]
[WhiteElo "2672"]
[BlackElo "2750"]
[Annotator "TA"]
[PlyCount "75"]
[EventDate "2022.??.??"]
[TimeControl "60"]

{[%evp 15,75,9,2,9,18,14,8,0,13,2,9,0,27,0,0,-16,-16,-19,-15,-36,0,0,0,-14,-14,
0,-11,-8,0,0,0,0,0,0,0,0,7,9,12,14,8,4,12,12,8,0,0,0,0,0,0,0,0,0,0,0,0,0,0,0,0,
0]} 1. e4 {[%emt 0:00:05]} e5 {[%emt 0:00:04]} 2. Nf3 {[%emt 0:00:07]} Nc6 {
[%emt 0:00:05]} 3. Bb5 {[%emt 0:02:26]} Nf6 {[%emt 0:00:07]} 4. d3 {[%emt 0:00:
00]} Bc5 {[%emt 0:00:08]} 5. c3 {[%emt 0:00:52]} d5 {[%emt 0:00:13]} 6. Nbd2 {
[%emt 0:01:44]} O-O {[%emt 0:02:20]} 7. O-O {[%emt 0:01:45]} dxe4 {[%emt 0:00:
00]} 8. dxe4 {[%emt 0:00:11]} Qe7 {[%emt 0:00:06]} 9. b4 {[%emt 0:03:25] C00:
French: Unusual White 2nd moves.} Bd6 {[%emt 0:00:59]} 10. a3 {[%emt 0:00:47]}
a5 {[%emt 0:03:31][%cal Ra5b4]} 11. Rb1 {[%emt 0:01:17]} axb4 {[%emt 0:09:34]}
12. axb4 {[%emt 0:00:35]} Be6 {[%emt 0:03:37] [#]} 13. Qe2 $146 {[%emt 0:04:07]
} ({Predecessor:} 13. Re1 Rfd8 14. Qc2 h6 15. Bf1 Ra2 16. Bb2 Qe8 17. Nc4 b5
18. Ne3 Ne7 19. Ra1 {½-½ (56) Carlsen,M (2835)-Kramnik,V (2777) Wijk aan Zee
2019}) 13... Ra2 {[%emt 0:05:44]} 14. Ng5 {[%emt 0:20:35]} Bg4 {[%emt 0:00:30]}
15. Qc4 {[%emt 0:00:26]} Rfa8 {[%emt 0:01:58]} 16. h3 {[%emt 0:06:58]} Bd7 {
[%emt 0:00:37]} 17. Qd3 {[%emt 0:02:38]} h6 {[%emt 0:13:03]} (17... Nh5 {
seems wilder.} 18. Nc4 Nxb4 19. Rxb4 Bxb4 20. Bxd7 Bc5) 18. Ngf3 {[%emt 0:00:
00] The position is equal.} Be6 {[%emt 0:04:09]} 19. Bc4 Bxc4 {[%emt 0:00:00]}
20. Nxc4 {[%emt 0:07:29]} Qe6 {[%emt 0:00:00]} 21. Ne3 {[%emt 0:03:48]} Rd8 {
[%emt 0:06:01]} 22. Nd5 {[%emt 0:00:54]} Nxd5 {[%emt 0:01:19]} 23. exd5 {
[%emt 0:12:43]} e4 {[%emt 0:00:31][%cal Ye6g6] [#] White must now prevent ...
Qg6!} 24. Qc4 {[%emt 0:00:57]} Ne5 $1 {[%emt 0:03:36]} (24... Qg6 $2 25. Ne1 (
25. Nh4 Ne5 $14) 25... Ra6 26. dxc6 $16) 25. Qxe4 {[%emt 0:03:45]} ({Much
weaker is} 25. dxe6 Nxc4 26. exf7+ Kxf7 $17) (25. Qxa2 Nxf3+ 26. Kh1 (26. gxf3
$2 Qg6+ 27. Kh1 exf3 $19) 26... Qe5 $17) 25... Qg6 $132 {[%emt 0:00:15] Black
is not holding back} 26. Qxg6 {[%emt 0:00:25]} Nxf3+ {[%emt 0:00:00]} 27. gxf3
{[%emt 0:00:04]} fxg6 {[%emt 0:00:08]} 28. Be3 {[%emt 0:03:22]} b5 {[%emt 0:06:
42]} 29. Ra1 {[%emt 0:07:53]} Rc2 {[%emt 0:02:42]} 30. Ra5 {[%emt 0:00:59]}
Rxc3 {[%emt 0:00:41]} 31. Rxb5 {[%emt 0:00:13]} Rb3 {[%emt 0:00:00]} 32. Rc1 {
[%emt 0:00:41]} Rxb4 {[%emt 0:00:32]} 33. Rxb4 {[%emt 0:00:07]} Bxb4 {[%emt 0:
00:05]} 34. Rxc7 {[%emt 0:00:11]} Rxd5 $11 {[%emt 0:00:04] KRB-KRB} 35. Rc8+ {
[%emt 0:00:06]} Kf7 {[%emt 0:00:05]} 36. Rc7+ {[%emt 0:00:00]} Kg8 {[%emt 0:00:
03]} 37. Rc8+ {[%emt 0:00:04]} Kf7 {[%emt 0:00:04]} 38. Rc7+ {[%emt 0:02:01]
An interesting draw. Weighted Error Value: White=0.05 (flawless) /Black=0.04 
(flawless)} 1/2-1/2

[Event "44th Chess Olympiad Open 2022"]
[Site "Chennai"]
[Date "2022.08.02"]
[Round "5.5"]
[White "Lagarde, Maxime"]
[Black "Moranda, Wojciech"]
[Result "1-0"]
[WhiteElo "2631"]
[BlackElo "2636"]
[Annotator "TA"]
[PlyCount "121"]
[EventDate "2022.??.??"]
[TimeControl "60"]

{[%evp 10,121,31,21,12,8,27,10,27,24,35,12,13,25,20,0,16,0,0,0,4,0,24,0,10,8,
43,13,15,27,136,133,129,50,125,127,135,89,100,93,90,84,83,55,46,46,52,59,49,58,
71,62,63,56,70,57,86,72,72,72,69,53,60,72,56,58,67,57,64,64,143,145,175,181,
200,185,242,238,257,154,239,239,232,195,210,190,197,113,128,113,116,92,91,88,
129,75,355,354,348,345,345,345,345,325,29966,29966,29973,29974,29993,29994,
29994,29995,29998,29999]} 1. e4 {[%emt 0:00:03]} c6 {[%emt 0:00:12]} 2. d4 {
[%emt 0:00:03]} d5 {[%emt 0:00:13]} 3. Nc3 {[%emt 0:00:05]} dxe4 {[%emt 0:00:
00]} 4. Nxe4 {[%emt 0:00:04]} Nf6 {[%emt 0:00:29]} 5. Nxf6+ {[%emt 0:00:05]}
exf6 {[%emt 0:00:16]} 6. Be3 {[%emt 0:00:04]} Bd6 {[%emt 0:03:55] B15:
Caro-Kann: 3 Nc3:3...g6 and 3...dxe4 4 Nxe4 Nf6 5 Nxf6+ exf6.} 7. Bd3 {[%emt 0:
00:05]} O-O {[%emt 0:04:31]} 8. Ne2 {[%emt 0:00:24]} (8. Qh5 g6 9. Qd1 Qb6 $11)
8... Re8 {[%emt 0:11:10][%cal Yc8f5] The position is equal.} 9. O-O {[%emt 0:
00:21]} Nd7 {[%emt 0:01:54][%cal Yb8d7,Yd7f8,Yf8e6]} 10. c4 {[%emt 0:00:09]}
Nf8 {[%emt 0:06:17]} 11. Ng3 {[%emt 0:00:08]} g6 {[%emt 0:00:00]} 12. Qd2 {
[%emt 0:10:58]} f5 {[%emt 0:08:35] [#]} 13. Ne2 $146 {[%emt 0:00:00]} ({
Predecessor:} 13. Rae1 Bd7 14. Ne2 Ne6 15. Kh1 a5 16. a3 a4 17. f3 Qc7 18. c5
Bf8 19. Bc4 {1-0 (42) Solozhenkina,E (2283)-Vanishvili,M (1918) Sochi 2022})
13... Ne6 {[%emt 0:04:09]} (13... Qh4 14. g3 Qd8 15. Rfe1 $14) 14. Rad1 {
[%emt 0:10:52]} b6 {[%emt 0:06:18]} (14... Qh4 15. g3 Qd8 16. Rfe1 $14) 15. b4
{[%emt 0:17:50]} Bb7 {[%emt 0:11:15]} 16. c5 {[%emt 0:09:09]} Bc7 {[%emt 0:00:
00]} 17. Bc4 {[%emt 0:07:17]} a5 {[%emt 0:06:41]} 18. b5 $1 {[%emt 0:11:28]}
cxb5 {[%emt 0:06:08]} 19. Bxb5 {[%emt 0:00:44] Black must now prevent d5.} Qd5
{[%emt 0:03:31]} (19... f4 $1 $11 {remains equal.} 20. Nxf4 (20. Bxe8 fxe3 21.
Bxf7+ Kxf7 $16) 20... Qg5 $1) 20. f3 $16 {[%emt 0:00:14] And now Nc3 would win.
} bxc5 {[%emt 0:00:17]} 21. dxc5 {[%emt 0:04:01]} (21. Bxe8 $16 {Hoping for
Ba4.} Rxe8 22. dxc5) 21... Qe5 {[%emt 0:06:22]} ({Better is} 21... Qxd2 $14 22.
Rxd2 f4) 22. f4 $1 {[%emt 0:03:26]} Nxf4 {[%emt 0:01:33]} 23. Nxf4 {[%emt 0:00:
00]} ({White should play} 23. Bxf4 Qxc5+ 24. Nd4 Bxf4 25. Rxf4) 23... Qxe3+ {
[%emt 0:01:38]} 24. Qxe3 {[%emt 0:00:06]} Rxe3 {[%emt 0:00:04]} 25. c6 $1 {
[%emt 0:00:53]} Ba6 {[%emt 0:01:04]} 26. Bxa6 {[%emt 0:07:55]} Rxa6 {[%emt 0:
00:00]} 27. Nd5 {[%emt 0:00:09][%csl Yc7,Ye3]} Re2 {[%emt 0:03:45]} 28. Nxc7 {
[%emt 0:02:49]} Rxc6 {[%emt 0:00:03]} 29. Nd5 {[%emt 0:00:06]} Rcc2 {[%emt 0:
00:00]} 30. Nf4 {[%emt 0:00:05]} Re4 {[%emt 0:00:20]} 31. a3 {[%emt 0:00:49]}
Ra2 {[%emt 0:02:33]} 32. Rf3 {[%emt 0:02:29]} Rc4 {[%emt 0:00:41]} 33. h4 {
[%emt 0:02:10]} Kg7 {[%emt 0:00:36]} 34. Rd7 {[%emt 0:02:06]} Ra4 {[%emt 0:00:
00]} 35. Ne6+ {[%emt 0:02:03]} Kf6 {[%emt 0:00:11]} 36. Nd8 {[%emt 0:00:09]}
Rxh4 {[%emt 0:01:00]} 37. Rxf7+ {[%emt 0:00:21]} Ke5 {[%emt 0:00:29]} 38. Re7+
{[%emt 0:00:36]} (38. Ra7 $5 {[%cal Ra7a5]}) 38... Kd6 {[%emt 0:00:51]} 39.
Ree3 {[%emt 0:02:43]} Rd4 {[%emt 0:01:13]} (39... Ra1+ $14 40. Kf2 Ra2+ 41. Re2
Rxe2+ 42. Kxe2 Re4+ 43. Kf2 Kd5) 40. Nb7+ {[%emt 0:01:15]} Kc6 {[%emt 0:00:58]}
41. Nxa5+ {[%emt 0:04:29]} Kb6 {[%emt 0:02:53]} 42. Nb3 {[%emt 0:08:04]} Rg4 {
[%emt 0:06:26] [#]} (42... Re4 {was worth a try.} 43. Nc1 Rd2) 43. Rf2 $1 $18 {
[%emt 0:04:35]} ({Don't do} 43. Re6+ $6 Kb5) 43... Rxa3 {[%emt 0:00:59]} 44.
Re6+ {[%emt 0:00:47]} (44. Rc2 $18) 44... Kb5 {[%emt 0:01:07] [#]} (44... Ka7
$16) 45. Rb2 $1 {[%emt 0:01:38]} Kc4 {[%emt 0:04:17]} 46. Nd2+ {[%emt 0:00:38]}
Kd5 {[%emt 0:01:10]} 47. Re8 {[%emt 0:03:15]} h5 {[%emt 0:03:45]} 48. Nf1 {
[%emt 0:02:56]} (48. Rc2 $18) 48... Ra1 $16 {[%emt 0:02:33]} 49. Rd2+ {[%emt 0:
00:00]} Kc6 {[%emt 0:00:23]} 50. Rc8+ {[%emt 0:00:18]} Kb7 {[%emt 0:00:14]} 51.
Rc3 {[%emt 0:00:17]} Rb1 {[%emt 0:02:34] Prevents Rb2+.} 52. Rdc2 {[%emt 0:00:
00]} ({White should try} 52. Rd7+ Kb6 53. Rd8) 52... h4 $2 {[%emt 0:01:13] [#]
Black cannot hold the game after this.} (52... Rf4 $16 {keeps fighting.}) 53.
Kh2 $1 $18 {[%emt 0:00:38]} Ra4 {[%emt 0:03:03]} (53... Rxf1 $2 {leads to mate.
} 54. Rb3+ Ka8 55. Ra2+) (53... h3 54. Rxh3) 54. Nd2 {[%emt 0:00:25]} Rb6 {
[%emt 0:02:41]} 55. Nc4 {[%emt 0:01:08]} Re6 {[%emt 0:00:00]} 56. Rb3+ {
[%emt 0:00:42]} Ka6 $2 {[%emt 0:01:08] [#]} (56... Ka7 $18 57. Ne3 Re7) 57.
Rcb2 $1 {[%emt 0:02:45] White mates.} g5 {[%emt 0:00:52]} (57... Ra1 58. Rb6+)
58. Nb6 {[%emt 0:00:32]} Ra1 {[%emt 0:00:45]} 59. Nd7 {[%emt 0:00:00]} Re8 {
[%emt 0:01:41]} 60. Rb7 {[%emt 0:00:53]} Rc8 {[%emt 0:00:58]} 61. R2b6+ {
[%emt 0:00:10] Weighted Error Value: White=0.10 (very precise) /Black=0.36} 1-0

[Event "44th Chess Olympiad Open 2022"]
[Site "Chennai"]
[Date "2022.08.02"]
[Round "5.5"]
[White "Bartel, Mateusz"]
[Black "Maurizzi, Marc`Andria"]
[Result "1/2-1/2"]
[WhiteElo "2597"]
[BlackElo "2506"]
[Annotator "TA"]
[PlyCount "73"]
[EventDate "2022.??.??"]
[TimeControl "60"]

{[%evp 13,73,0,0,0,18,0,7,10,12,0,0,0,0,0,0,0,0,0,0,0,1,0,0,-6,0,0,12,0,0,0,0,
0,0,0,13,12,24,0,0,0,0,0,0,0,0,0,0,0,0,0,0,0,0,0,0,0,0,0,0,0,0,0]} 1. e4 {
[%emt 0:00:03]} c5 {[%emt 0:00:25]} 2. Nf3 {[%emt 0:00:09]} Nc6 {[%emt 0:00:03]
} 3. Nc3 {[%emt 0:00:08]} g6 {[%emt 0:00:10]} 4. Bc4 {[%emt 0:03:47]} Bg7 {
[%emt 0:00:45]} 5. O-O {[%emt 0:00:07]} d6 {[%emt 0:07:51]} 6. a3 {[%emt 0:00:
00]} Nf6 {[%emt 0:02:57]} 7. d3 {[%emt 0:00:03]} O-O {[%emt 0:03:36]} 8. h3 {
[%emt 0:06:49] B50: Sicilian: 2...d6, Miscellaneous.} Nd4 {[%emt 0:07:06]} 9.
Nxd4 {[%emt 0:02:59]} cxd4 {[%emt 0:00:03]} 10. Nd5 {[%emt 0:01:45]} Nxd5 {
[%emt 0:08:37] [#]} (10... Rb8 {keeps more tension.} 11. Bd2 b5 12. Bb3 Nxd5
13. Bxd5 e6) 11. exd5 $146 {[%emt 0:02:09]} ({Predecessor:} 11. Bxd5 Qc7 12.
Bd2 Be6 13. Bxe6 fxe6 14. c4 dxc3 15. Bxc3 Bxc3 {½-½ (15) Hansen,S (2555)
-Smirin,I (2662) Turin 2006}) 11... e5 {[%emt 0:04:17]} 12. dxe6 {[%emt 0:00:
00]} Bxe6 {[%emt 0:14:10]} 13. Bxe6 {[%emt 0:14:20]} fxe6 {[%emt 0:00:00]} 14.
Bd2 {[%emt 0:00:30]} Rc8 {[%emt 0:00:00][%cal Ya8c8,Yc8c5,Yc5f5]} 15. Rc1 {
[%emt 0:02:18]} Qb6 {[%emt 0:00:00]} 16. c4 {[%emt 0:00:00]} dxc3 {[%emt 0:01:
44]} ({Don't play} 16... Qxb2 17. Bb4 Be5 18. Rb1 $16) 17. Bxc3 {[%emt 0:02:54]
} Bxc3 {[%emt 0:08:53]} 18. bxc3 {[%emt 0:00:09]} Rc5 {[%emt 0:00:00]} 19. d4 {
[%emt 0:10:27]} Rcf5 {[%emt 0:03:41]} 20. Qe2 {[%emt 0:04:54]} R8f6 {[%emt 0:
01:07]} 21. Rc2 {[%emt 0:04:05][%cal Yc1c2,Yc2b2,Yb2b3]} Ra5 {[%emt 0:04:51]}
22. Rb2 {[%emt 0:04:29]} Qc6 {[%emt 0:00:31]} 23. Rb3 {[%emt 0:00:10]} Rg5 {
[%emt 0:04:31][%csl Gg5][%cal Rc6g2] [#]} 24. f3 {[%emt 0:00:00]} b6 {[%emt 0:
01:31]} 25. Kh1 {[%emt 0:02:15]} Rgf5 {[%emt 0:02:17] The position is equal.}
26. c4 {[%emt 0:00:42]} e5 {[%emt 0:01:37]} 27. Rd1 {[%emt 0:01:04]} exd4 {
[%emt 0:01:16]} 28. Rxd4 {[%emt 0:00:10]} Re5 {[%emt 0:00:00]} 29. Re3 {
[%emt 0:00:11]} Rfe6 {[%emt 0:00:35]} 30. Rxe5 {[%emt 0:00:41]} Rxe5 $11 {
[%emt 0:00:29] Endgame KQR-KQR} 31. Qd2 {[%emt 0:00:55]} Re6 {[%emt 0:01:35]}
32. Qg5 {[%emt 0:01:50]} Qe8 {[%emt 0:03:58]} 33. Qd5 {[%emt 0:02:54]} Kg7 {
[%emt 0:01:19]} 34. Kh2 {[%emt 0:00:08]} Qe7 {[%emt 0:00:00]} 35. f4 {[%emt 0:
00:27]} Qf6 {[%emt 0:05:33]} 36. a4 {[%emt 0:00:23]} h5 {[%emt 0:00:52]} 37.
Re4 {[%emt 0:02:11] An even fight not without its subleties. Weighted Error
Value: White=0.02 (flawless) /Black=0.02 (flawless)} 1/2-1/2